bitfinex/quotes_SOLUSD_20250830
["timestamp","ask_amount","ask_price","bid_price","bid_amount"]
[1756588304741,4.67775179,201.14,201.13,38.24]
[1756588304941,4.67775179,201.14,201.13,42.917752]
[1756588305257,4.67775179,201.14,201.13,43.617752]
[1756588307334,4.67775179,201.14,201.13,48.58966071]
[1756588311453,4.67775179,201.14,201.13,5.377752]
[1756588311671,4.67775179,201.14,201.13,38.94]
[1756588312449,4.67775179,201.14,201.13,43.97045]
[1756588313460,3.05589909,201.14,201.13,48.97235871]
[1756588318074,3.05589909,201.14,201.13,48.27235871]
[1756588318763,3.05589909,201.14,201.13,48.97235871]
[1756588325795,0.06,201.14,201.13,62.56795272]
[1756588326065,0.06,201.19,201.17,13.59559401]
[1756588326250,0.06,201.19,201.18,52.55559401]
[1756588326651,0.06,201.19,201.18,55.55149301]
[1756588326969,1e-08,201.19,201.18,62.75441339]
[1756588327340,1e-08,201.19,201.18,62.25734609]
[1756588327746,11.98359636,201.3,201.18,62.25734609]
[1756588327747,4.1858796,201.33,201.22,39.59559401]
[1756588327949,2.99589909,201.33,201.29,13.59559401]
[1756588328156,4.1858796,201.35,201.31,13.59559401]
[1756588328379,2.99589909,201.34,201.32,39.06]
[1756588328680,4.7558796,201.4,201.33,14.31559401]
[1756588328968,2.99589909,201.38,201.34,39.08]
[1756588329177,2.99589909,201.38,201.35,0.72]
[1756588329376,4.1858796,201.44,201.37,13.59559401]
[1756588329547,0.57,201.46,201.38,39.1]
[1756588329750,4.66933204,201.43,201.39,14.31559401]
[1756588329948,4.66933204,201.43,201.4,44.06524329]
[1756588330155,4.66933204,201.47,201.41,14.31559401]
[1756588330353,4.66933204,201.47,201.42,39.2]
[1756588330545,4.66933204,201.46,201.43,0.72]
[1756588330757,4.66933204,201.46,201.44,39.22]
[1756588330956,4.7558796,201.55,201.45,18.98492605]
[1756588331140,4.1858796,201.56,201.46,39.22]
[1756588331346,4.66933204,201.52,201.47,14.31559401]
[1756588331576,3.91129596,201.58,201.49,13.59559401]
[1756588331779,4.66933204,201.53,201.5,0.72]
[1756588332074,4.66933204,201.51,201.5,0.72]
[1756588332277,4.66933204,201.51,201.46,0.72]
[1756588332478,0.06,201.52,201.48,18.26492605]
[1756588332775,0.06,201.52,201.49,23.54]
[1756588333080,0.06,201.52,201.49,28.92933204]
[1756588333376,0.06,201.52,201.5,14.31559401]
[1756588333583,4.66933204,201.51,201.48,39.56]
[1756588333877,4.66933204,201.51,201.48,39.58]
[1756588334056,4.66933204,201.49,201.45,31.389332]
[1756588334257,4.66933204,201.48,201.46,39.58]
[1756588334457,4.66933204,201.49,201.47,0.72]
[1756588335074,4.66933204,201.48,201.47,0.72]
[1756588336254,4.66933204,201.49,201.47,0.72]
[1756588336572,4.66933204,201.48,201.47,0.72]
[1756588336971,5.23933204,201.48,201.45,43.509332]
[1756588337182,4.66933204,201.46,201.45,43.509332]
[1756588337363,4.66933204,201.46,201.45,4.669332]
[1756588338074,4.66933204,201.47,201.45,18.98492601]
[1756588338263,4.66933204,201.46,201.45,18.26492601]
[1756588338665,0.06,201.52,201.46,13.59559401]
[1756588338869,4.66933204,201.48,201.47,52.43559401]
[1756588339260,4.66933204,201.48,201.47,53.15559401]
[1756588339462,4.66933204,201.5,201.48,13.59559401]
[1756588339676,4.66933204,201.5,201.49,39.58]
[1756588339977,4.66933204,201.5,201.47,38.86]
[1756588340163,0.06,201.52,201.49,4.669332]
[1756588340370,4.66933204,201.5,201.49,43.549332]
[1756588340571,4.66933204,201.5,201.49,44.269332]
[1756588341278,0.06,201.52,201.49,44.269332]
[1756588341584,0.06,201.52,201.47,4.96347702]
[1756588341585,4.66933204,201.5,201.41,4.66933204]
[1756588341761,4.66933204,201.46,201.45,13.59559401]
[1756588341956,4.66933204,201.47,201.45,53.23559401]
[1756588342156,0.57,201.51,201.46,14.31559401]
[1756588342356,4.66933204,201.49,201.47,52.51559401]
[1756588342572,4.66933204,201.49,201.48,0.72]
[1756588343279,4.66933204,201.49,201.48,5.681815]
[1756588344381,5.23933204,201.49,201.37,0.72]
[1756588344563,4.66933204,201.5,201.37,0.72]
[1756588344564,4.66933204,201.38,201.37,0.72]
[1756588345089,4.66933204,201.38,201.37,18.98492601]
[1756588345383,4.66933204,201.38,201.37,5.389332]
[1756588345568,4.66933204,201.38,201.37,4.669332]
[1756588345877,4.66933204,201.38,201.35,17.68]
[1756588346082,4.66933204,201.4,201.36,5.389332]
[1756588346470,0.57,201.43,201.36,0.72]
[1756588346655,0.57,201.43,201.37,4.964322]
[1756588347258,4.66933204,201.39,201.37,18.55991601]
[1756588347563,4.66933204,201.39,201.37,23.52581472]
[1756588347763,4.66933204,201.4,201.37,24.24581472]
[1756588347983,4.66933204,201.4,201.38,0.72]
[1756588348200,4.66933204,201.4,201.37,23.52581472]
[1756588348364,4.66933204,201.4,201.37,18.56149272]
[1756588348567,4.66933204,201.4,201.38,4.964014]
[1756588348759,4.66933204,201.4,201.38,5.684014]
[1756588349172,4.66933204,201.41,201.38,5.684014]
[1756588349482,0.57,201.43,201.38,5.684014]
[1756588349483,4.66933204,201.43,201.39,14.31559401]
[1756588349655,4.66933204,201.43,201.4,4.96524329]
[1756588349858,4.66933204,201.42,201.4,4.96524329]
[1756588350258,4.66933204,201.43,201.4,4.96524329]
[1756588350675,4.66933204,201.43,201.4,9.92870629]
[1756588350879,4.66933204,201.42,201.4,9.92870629]
[1756588351382,4.66933204,201.42,201.4,5.68524329]
[1756588351585,4.66933204,201.42,201.41,4.963464]
[1756588354484,4.66933204,201.42,201.41,9.92846077]
[1756588354695,4.66933204,201.43,201.41,9.92846077]
[1756588356076,4.66933204,201.44,201.41,9.92846077]
[1756588356788,4.66933204,201.44,201.41,4.96499677]
[1756588357368,4.66933204,201.44,201.42,5.62473391]
[1756588357570,4.66933204,201.44,201.42,4.96473391]
[1756588357985,0.57,201.47,201.42,4.96473391]
[1756588358183,4.66933204,201.44,201.42,4.96473391]
[1756588358386,4.66933204,201.44,201.42,0.66]
[1756588358598,0.06,201.49,201.42,13.59559401]
[1756588358778,4.66933204,201.46,201.43,0.66]
[1756588359096,26.57,201.48,201.42,13.59559401]
[1756588359267,4.66933204,201.46,201.43,0.66]
[1756588359588,4.66933204,201.46,201.42,28.52133901]
[1756588359792,4.66933204,201.46,201.42,14.25559401]
[1756588360094,26.06,201.49,201.44,4.66933204]
[1756588360386,30.72933204,201.49,201.45,5.62396185]
[1756588360591,30.72933204,201.49,201.45,4.96396185]
[1756588360592,4.72933204,201.49,201.45,4.96396185]
[1756588360792,5.29933204,201.49,201.45,4.96396185]
[1756588361464,4.72933204,201.49,201.45,5.62396185]
[1756588362188,0.06,201.49,201.46,14.25559401]
[1756588362586,0.06,201.49,201.46,18.55916764]
[1756588362902,0.06,201.49,201.46,23.88849968]
[1756588363365,0.06,201.49,201.46,18.55916764]
[1756588363566,0.06,201.49,201.46,23.88849968]
[1756588363793,0.06,201.49,201.46,19.21916764]
[1756588364192,0.06,201.49,201.46,18.55916764]
[1756588364384,0.06,201.49,201.47,0.66]
[1756588364585,0.06,201.49,201.46,19.21916764]
[1756588365093,0.06,201.49,201.46,18.55916764]
[1756588365293,0.06,201.49,201.47,4.96348184]
[1756588366177,0.06,201.49,201.47,5.62348184]
[1756588366495,0.06,201.49,201.48,0.66]
[1756588405930,0.06,201.49,201.48,0.69]
[1756588413226,0.06,201.49,201.48,22.23383019]
[1756588413620,0.06,201.49,201.48,25.5442823]
[1756588413819,0.06,201.49,201.48,64.0842823]
[1756588414619,0.06,201.49,201.48,61.0993179]
[1756588417229,0.06,201.49,201.48,64.0842823]
[1756588418632,0.06,201.49,201.48,60.77383019]
[1756588418831,0.06,201.49,201.48,64.10881372]
[1756588419214,0.06,201.49,201.48,64.10926894]
[1756588419536,0.06,201.49,201.48,64.10894569]
[1756588422149,0.06,201.49,201.48,67.80303799]
[1756588423421,0.06,201.49,201.48,67.80176928]
[1756588425221,0.06,201.49,201.48,3.3651155]
[1756588425418,3.0449644,201.49,201.48,0.03]
[1756588425619,0.06,201.49,201.48,0.75]
[1756588426153,0.06,201.49,201.48,5.71327178]
[1756588427949,0.06,201.49,201.48,19.30886579]
[1756588432121,0.06,201.49,201.48,22.49825438]
[1756588433027,0.06,201.49,201.48,22.49825495]
[1756588437762,0.06,201.49,201.48,25.48321935]
[1756588439451,0.06,201.49,201.48,22.49825495]
[1756588439987,0.06,201.49,201.48,17.5345773]
[1756588440174,0.06,201.49,201.48,22.49784908]
[1756588440532,0.06,201.49,201.48,25.48339169]
[1756588444046,1e-08,201.49,201.48,25.48339169]
[1756588444357,1e-08,201.49,201.48,28.46835569]
[1756588445256,1e-08,201.49,201.48,25.48339129]
[1756588445558,1e-08,201.49,201.48,28.46835569]
[1756588447860,1e-08,201.49,201.48,25.48339129]
[1756588448053,1e-08,201.49,201.48,28.96468286]
[1756588448445,0.06,201.52,201.51,39.59559401]
[1756588448646,0.06,201.52,201.51,84.15011991]
[1756588448847,0.06,201.52,201.51,84.81011991]
[1756588449241,0.06,201.52,201.51,84.79483844]
[1756588449472,0.06,201.52,201.51,89.75737131]
[1756588450064,0.06,201.52,201.51,89.75641207]
[1756588450265,0.06,201.52,201.51,89.75569231]
[1756588450853,0.06,201.54,201.52,13.59559401]
[1756588451174,0.06,201.54,201.53,58.13315944]
[1756588451356,0.06,201.54,201.53,73.70851444]
[1756588451564,0.06,201.54,201.53,78.67055483]
[1756588454183,0.06,201.54,201.53,78.65055483]
[1756588456165,0.06,201.54,201.53,78.64236175]
[1756588459689,0.06,201.54,201.53,78.63939682]
[1756588460168,0.06,201.54,201.53,75.4779538]
[1756588460371,0.06,201.54,201.53,78.63939682]
[1756588461579,0.06,201.57,201.56,39.59559401]
[1756588461776,0.06,201.59,201.57,13.59559401]
[1756588461976,0.06,201.59,201.58,54.92055841]
[1756588462179,0.06,201.59,201.58,70.49146541]
[1756588462592,0.06,201.59,201.58,75.45227501]
[1756588462775,0.06,201.59,201.58,80.40910241]
[1756588462977,0.06,201.59,201.58,75.45227501]
[1756588463179,0.63,201.59,201.58,33.46731061]
[1756588463378,0.63,201.59,201.58,71.80731061]
[1756588463570,0.06,201.59,201.58,71.80731061]
[1756588463770,0.63,201.59,201.58,28.50650101]
[1756588463973,0.63,201.59,201.58,66.84650101]
[1756588464167,0.06,201.59,201.58,66.84650101]
[1756588464376,0.06,201.59,201.58,74.79227501]
[1756588464695,0.06,201.59,201.58,75.45227501]
[1756588464995,0.06,201.59,201.58,74.79227501]
[1756588465196,0.06,201.59,201.58,33.46731061]
[1756588465398,0.06,201.59,201.58,74.79227501]
[1756588466901,0.06,201.59,201.58,75.45227501]
[1756588468603,0.06,201.59,201.58,72.46731061]
[1756588469099,0.06,201.59,201.58,75.45227501]
[1756588470193,0.06,201.59,201.58,74.79227501]
[1756588470994,0.06,201.59,201.58,75.45227501]
[1756588473681,0.06,201.59,201.58,72.46731061]
[1756588473876,0.06,201.59,201.58,75.45227501]
[1756588474598,0.06,201.59,201.58,33.46731061]
[1756588474806,0.06,201.59,201.58,75.42227501]
[1756588475175,0.06,201.59,201.58,72.43731061]
[1756588475506,0.06,201.59,201.58,75.42227501]
[1756588476297,0.06,201.59,201.58,72.43731061]
[1756588476487,0.06,201.59,201.58,75.42227501]
[1756588481213,0.06,201.59,201.58,72.43731061]
[1756588481420,0.06,201.59,201.58,75.42227501]
[1756588486817,0.06,201.59,201.58,78.56292102]
[1756588487727,0.63,201.59,201.58,28.50650101]
[1756588487924,3.6149644,201.59,201.58,66.82650101]
[1756588488129,3.6149644,201.59,201.58,38.32]
[1756588488303,0.63,201.59,201.58,38.32]
[1756588488625,3.6149644,201.59,201.58,38.32]
[1756588489004,3.6149644,201.59,201.57,38.32]
[1756588489209,3.5549644,201.58,201.57,38.32]
[1756588491413,8.51582408,201.58,201.52,0.03]
[1756588491615,2.9849644,201.56,201.53,38.32]
[1756588491927,0.57,201.55,201.53,38.32]
[1756588492129,2.9849644,201.56,201.53,38.32]
[1756588492329,0.57,201.55,201.53,14.879548]
[1756588492579,0.06,201.59,201.52,0.03]
[1756588492711,0.06,201.59,201.53,38.32]
[1756588493032,2.9849644,201.54,201.53,38.32]
[1756588493213,2.9849644,201.54,201.52,0.03]
[1756588493214,3.5549644,201.54,201.52,38.35]
[1756588495523,15.449548,201.58,201.53,0.65]
[1756588495728,2.9849644,201.56,201.54,38.32]
[1756588496712,3.5549644,201.56,201.54,38.32]
[1756588497320,0.57,201.56,201.54,38.32]
[1756588497719,2.9849644,201.55,201.54,38.32]
[1756588498234,2.9849644,201.56,201.54,43.28179418]
[1756588498728,2.9849644,201.56,201.54,46.26675818]
[1756588500126,2.9849644,201.56,201.54,41.304964]
[1756588500334,2.9849644,201.55,201.54,41.304964]
[1756588501142,3.5549644,201.55,201.53,38.32]
[1756588501431,0.57,201.54,201.53,38.32]
[1756588501734,3.5549644,201.54,201.53,38.32]
[1756588502135,3.5549644,201.54,201.52,38.35]
[1756588502332,2.9849644,201.53,201.52,38.35]
[1756588502518,3.5549644,201.53,201.52,38.35]
[1756588502837,29.5549644,201.53,201.52,0.03]
[1756588503033,44.4792234,201.53,201.52,0.03]
[1756588503627,49.44126379,201.53,201.52,0.03]
[1756588504541,49.44126379,201.53,201.49,0.03]
[1756588504542,26.0,201.5,201.49,0.03]
[1756588504719,2.9849644,201.48,201.46,0.03]
[1756588504917,2.9849644,201.47,201.46,0.03]
[1756588505233,5.5455584,201.47,201.46,0.03]
[1756588505434,7.22816879,201.47,201.46,0.03]
[1756588506015,1.990594,201.47,201.46,0.03]
[1756588506331,36.20109293,201.47,201.46,0.03]
[1756588506537,10.20109293,201.47,201.46,0.03]
[1756588506845,10.20109293,201.47,201.43,0.03]
[1756588506846,26.0,201.44,201.43,0.03]
[1756588507041,30.66757479,201.44,201.43,0.03]
[1756588507351,31.23757479,201.44,201.43,0.03]
[1756588507726,1.990495,201.49,201.43,0.03]
[1756588507932,4.66757479,201.44,201.43,0.03]
[1756588508440,4.66757479,201.44,201.4,0.03]
[1756588508441,9.90514958,201.44,201.4,0.03]
[1756588508648,9.33514958,201.41,201.4,0.03]
[1756588509043,9.90514958,201.41,201.4,0.03]
[1756588509764,30.96573641,201.38,201.37,0.03]
[1756588509956,35.6333112,201.38,201.37,0.03]
[1756588510255,36.2033112,201.38,201.37,0.03]
[1756588512256,36.2033112,201.38,201.35,0.03]
[1756588512257,38.1949962,201.38,201.35,0.03]
[1756588512429,4.66757479,201.36,201.35,0.03]
[1756588512951,5.23757479,201.36,201.35,0.03]
[1756588513947,4.66757479,201.36,201.35,0.03]
[1756588514148,5.53574547,201.38,201.35,0.03]
[1756588514457,4.66757479,201.36,201.35,0.03]
[1756588515043,5.23757479,201.36,201.35,0.03]
[1756588515755,5.23757479,201.36,201.34,0.03]
[1756588515946,9.63405107,201.35,201.34,0.03]
[1756588516347,10.20405107,201.35,201.34,0.03]
[1756588517236,30.66757479,201.33,201.32,0.03]
[1756588519158,30.66757479,201.33,201.32,0.75]
[1756588519331,30.66757479,201.33,201.32,0.03]
[1756588519535,26.0,201.35,201.32,0.75]
[1756588519836,4.66757479,201.33,201.32,0.03]
[1756588520549,4.66757479,201.33,201.32,0.75]
[1756588522146,4.66757479,201.33,201.32,0.03]
[1756588522348,4.66757479,201.33,201.32,0.75]
[1756588522956,4.96674239,201.34,201.32,0.75]
[1756588523156,4.66757479,201.33,201.32,0.75]
[1756588523365,5.23757479,201.33,201.32,0.03]
[1756588523659,9.90514958,201.33,201.32,0.03]
[1756588523869,9.90514958,201.33,201.31,0.2]
[1756588524160,35.33514958,201.32,201.31,0.2]
[1756588524570,40.87236595,201.32,201.31,0.2]
[1756588525134,40.87236595,201.32,201.27,0.2]
[1756588525135,53.29040687,201.32,201.27,0.2]
[1756588525344,30.66757479,201.28,201.27,0.2]
[1756588527240,35.63577828,201.28,201.27,0.2]
[1756588528362,36.20577828,201.28,201.27,0.2]
[1756588528562,30.96820349,201.28,201.27,0.2]
[1756588528860,4.66757479,201.28,201.27,0.92]
[1756588529157,4.96750831,201.31,201.27,0.92]
[1756588529343,4.66757479,201.28,201.27,0.2]
[1756588529955,4.66757479,201.28,201.27,0.92]
[1756588530164,4.66757479,201.29,201.27,0.92]
[1756588530360,4.66757479,201.29,201.28,0.72]
[1756588530539,26.0,201.31,201.28,0.72]
[1756588530745,4.66757479,201.29,201.28,0.72]
[1756588530954,4.66757479,201.29,201.27,0.2]
[1756588531660,4.66757479,201.29,201.28,0.68]
[1756588532063,4.66757479,201.3,201.28,0.68]
[1756588532657,26.0,201.32,201.28,0.68]
[1756588532868,4.66757479,201.3,201.28,0.68]
[1756588536960,4.66757479,201.29,201.28,0.68]
[1756588537361,4.66757479,201.29,201.27,0.2]
[1756588537772,5.23757479,201.28,201.27,0.2]
[1756588538076,10.20577828,201.28,201.27,0.2]
[1756588538965,9.63577828,201.28,201.27,0.2]
[1756588539753,10.20577828,201.28,201.27,0.2]
[1756588539959,26.0,201.26,201.25,0.2]
[1756588540373,4.66757479,201.26,201.25,0.2]
[1756588540674,31.23757479,201.26,201.25,0.2]
[1756588541873,31.23757479,201.26,201.24,0.03]
[1756588541874,74.88627199,201.26,201.24,0.03]
[1756588542080,30.66757479,201.25,201.24,0.03]
[1756588542379,31.23757479,201.25,201.24,0.03]
[1756588544081,36.20651888,201.25,201.24,0.03]
[1756588544669,36.20651888,201.25,201.19,0.03]
[1756588544670,60.87409367,201.25,201.19,0.03]
[1756588544869,4.66757479,201.2,201.19,0.03]
[1756588545565,4.66757479,201.2,201.19,0.71]
[1756588546071,26.0,201.2,201.19,0.71]
[1756588546374,4.66757479,201.21,201.19,0.71]
[1756588546572,4.66757479,201.21,201.2,0.68]
[1756588546781,30.66757479,201.21,201.2,0.68]
[1756588546970,30.66757479,201.21,201.19,0.03]
[1756588547166,30.66757479,201.21,201.2,0.68]
[1756588547867,35.6375067,201.21,201.2,0.68]
[1756588548977,30.66757479,201.21,201.2,0.68]
[1756588549471,30.66757479,201.21,201.19,0.03]
[1756588549671,30.66757479,201.21,201.19,0.71]
[1756588549672,4.66757479,201.2,201.19,0.71]
[1756588549874,26.0,201.25,201.2,0.68]
[1756588550077,4.66757479,201.24,201.2,0.68]
[1756588553788,4.66757479,201.24,201.21,0.68]
[1756588554174,4.66757479,201.24,201.19,0.03]
[1756588554175,26.0,201.2,201.19,0.03]
[1756588554372,30.66757479,201.2,201.19,0.03]
[1756588554784,74.68514958,201.2,201.19,0.03]
[1756588556092,81.6487005,201.2,201.19,0.03]
[1756588556405,94.07414781,201.2,201.16,0.03]
[1756588556594,4.66757479,201.17,201.16,0.03]
[1756588556894,69.44757479,201.17,201.16,0.03]
[1756588557095,30.66757479,201.17,201.16,0.03]
[1756588558078,36.2084949,201.17,201.16,0.03]
[1756588558990,35.6384949,201.17,201.16,0.03]
[1756588559501,74.4184949,201.17,201.16,0.03]
[1756588560196,35.6384949,201.17,201.16,0.03]
[1756588560498,26.0,201.17,201.16,0.03]
[1756588560674,26.0,201.17,201.16,0.71]
[1756588565482,4.66757479,201.19,201.16,0.71]
[1756588565998,4.66757479,201.19,201.16,0.03]
[1756588566301,26.0,201.18,201.17,0.67]
[1756588568405,35.63801738,201.19,201.17,0.67]
[1756588570705,4.66757479,201.18,201.17,0.67]
[1756588571803,26.0,201.15,201.14,0.2]
[1756588572005,73.44795493,201.15,201.14,0.2]
[1756588572205,74.01795493,201.15,201.14,0.2]
[1756588572404,4.12085732,201.17,201.14,0.2]
[1756588572704,30.66757479,201.15,201.14,0.87]
[1756588572911,30.66757479,201.15,201.14,0.2]
[1756588573887,38.8,201.18,201.14,0.87]
[1756588573888,26.0,201.18,201.14,0.87]
[1756588574110,0.06,201.22,201.17,4.66757479]
[1756588574383,26.0,201.19,201.18,0.67]
[1756588574594,4.66757479,201.21,201.18,0.67]
[1756588575188,26.0,201.19,201.18,0.67]
[1756588575589,26.0,201.19,201.15,18.2631688]
[1756588575590,30.66757479,201.19,201.15,14.26559401]
[1756588575899,26.0,201.19,201.16,0.67]
[1756588576103,26.0,201.19,201.17,0.67]
[1756588576399,30.66757479,201.19,201.17,0.67]
[1756588576606,4.66757479,201.19,201.17,0.67]
[1756588577016,9.63791905,201.2,201.17,0.67]
[1756588578204,30.66757479,201.21,201.18,0.67]
[1756588578409,4.66757479,201.21,201.18,0.67]
[1756588578607,31.0297697,201.22,201.16,0.67]
[1756588578608,9.63778425,201.2,201.16,0.67]
[1756588578998,9.63778425,201.2,201.17,0.67]
[1756588579317,4.66757479,201.2,201.18,0.67]
[1756588579697,9.63757528,201.21,201.14,5.17163857]
[1756588579900,4.66757479,201.19,201.15,14.26559401]
[1756588580105,4.66757479,201.2,201.16,0.67]
[1756588580303,4.66757479,201.2,201.17,0.67]
[1756588581505,9.63782173,201.2,201.17,0.67]
[1756588582918,4.66757479,201.2,201.15,13.59559401]
[1756588583117,26.06,201.22,201.18,5.33757479]
[1756588583311,26.06,201.22,201.19,0.67]
[1756588583502,0.06,201.2,201.16,0.03]
[1756588583706,0.06,201.2,201.19,4.66757479]
[1756588584102,0.06,201.2,201.19,5.33757479]
[1756588585211,0.06,201.2,201.19,19.23601997]
[1756588585427,0.06,201.2,201.19,23.90359476]
[1756588588918,0.06,201.2,201.19,62.72359476]
[1756588589995,0.06,201.2,201.19,67.39116955]
[1756588590200,0.06,201.22,201.21,18.2631688]
[1756588590723,0.06,201.22,201.21,18.9331688]
[1756588591720,0.06,201.22,201.21,23.90310071]
[1756588592019,0.06,201.23,201.22,13.59559401]
[1756588592222,0.06,201.23,201.22,57.7331688]
[1756588593623,0.06,201.25,201.22,58.23013729]
[1756588593806,0.06,201.25,201.24,18.2631688]
[1756588594214,0.06,201.25,201.24,18.9531688]
[1756588594942,0.06,201.25,201.24,62.72235981]
[1756588597405,0.06,201.27,201.24,62.72235981]
[1756588597627,0.06,201.27,201.26,18.2631688]
[1756588597937,0.06,201.27,201.26,57.0231688]
[1756588598132,0.06,201.27,201.26,57.7131688]
[1756588600319,0.06,201.27,201.26,62.681866]
[1756588601323,0.06,201.27,201.26,63.17873572]
[1756588601642,0.06,201.27,201.26,57.0031688]
[1756588602024,0.06,201.27,201.26,57.0431688]
[1756588602421,0.06,201.27,201.26,62.011866]
[1756588604035,0.06,201.27,201.26,57.0231688]
[1756588604535,0.06,201.27,201.26,61.991866]
[1756588607040,0.06,201.27,201.26,57.0231688]
[1756588611321,0.06,201.27,201.26,18.2631688]
[1756588611523,0.63,201.27,201.26,52.29559401]
[1756588611723,0.06,201.27,201.26,52.29559401]
[1756588613544,0.06,201.27,201.26,61.931866]
[1756588613732,0.06,201.27,201.26,62.621866]
[1756588615625,0.06,201.3,201.27,13.59559401]
[1756588615830,0.06,201.3,201.29,18.2631688]
[1756588616362,0.06,201.3,201.29,57.6531688]
[1756588617260,0.06,201.3,201.29,62.62112547]
[1756588617637,0.06,201.3,201.29,23.92112547]
[1756588617841,0.06,201.3,201.29,62.60112547]
[1756588619527,0.63,201.3,201.25,0.03]
[1756588619728,0.57,201.29,201.27,13.59559401]
[1756588619937,0.57,201.28,201.27,13.59559401]
[1756588620248,0.57,201.28,201.25,13.62559401]
[1756588620463,4.66757479,201.29,201.25,0.03]
[1756588620464,0.57,201.27,201.25,0.03]
[1756588620974,0.57,201.26,201.25,0.03]
[1756588622260,5.23757479,201.26,201.25,0.03]
[1756588622460,10.20627199,201.26,201.25,0.03]
[1756588627001,26.0,201.23,201.22,0.03]
[1756588627277,30.66757479,201.23,201.22,0.03]
[1756588627482,31.23757479,201.23,201.22,0.03]
[1756588628292,36.20701274,201.23,201.22,0.03]
[1756588628802,31.53943795,201.23,201.22,0.03]
[1756588628973,36.20701274,201.23,201.22,0.03]
[1756588631780,9.33514958,201.22,201.21,0.03]
[1756588631985,48.03514958,201.22,201.21,0.03]
[1756588632196,43.93757479,201.22,201.21,0.03]
[1756588633312,26.0,201.19,201.18,0.03]
[1756588633503,9.63800075,201.19,201.18,0.03]
[1756588633800,10.20800075,201.19,201.18,0.03]
[1756588635592,30.66757479,201.17,201.16,0.03]
[1756588635797,69.36757479,201.17,201.16,0.03]
[1756588636110,69.93757479,201.17,201.16,0.03]
[1756588636276,73.95655764,201.17,201.16,0.03]
[1756588636481,69.93757479,201.17,201.16,0.03]
[1756588636902,75.85225734,201.17,201.16,0.03]
[1756588637688,75.85225734,201.17,201.14,0.2]
[1756588637689,80.82317745,201.17,201.14,0.2]
[1756588637892,4.66757479,201.15,201.14,0.2]
[1756588638300,5.23757479,201.15,201.14,0.2]
[1756588638498,5.23757479,201.15,201.1,0.03]
[1756588638804,4.66757479,201.14,201.1,0.03]
[1756588639178,31.23757479,201.14,201.1,0.03]
[1756588639904,74.35923631,201.14,201.1,0.69]
[1756588641979,4.66757479,201.14,201.13,0.69]
[1756588642411,4.66757479,201.14,201.13,0.03]
[1756588643492,4.66757479,201.14,201.13,0.69]
[1756588644589,9.63923631,201.14,201.13,0.69]
[1756588646210,12.99668257,201.18,201.13,0.69]
[1756588646211,74.35874202,201.16,201.13,0.69]
[1756588646416,4.66757479,201.15,201.13,0.69]
[1756588646626,30.66757479,201.14,201.13,0.69]
[1756588649013,26.0,201.14,201.13,0.69]
[1756588649198,26.0,201.16,201.13,0.69]
[1756588649399,4.97045531,201.19,201.14,4.66757479]
[1756588649617,9.6380301,201.19,201.15,0.66]
[1756588649825,35.6380301,201.19,201.15,0.66]
[1756588650997,30.97045531,201.19,201.15,0.66]
[1756588651220,35.6380301,201.19,201.15,0.66]
[1756588651425,26.0,201.17,201.16,0.67]
[1756588652424,35.63826586,201.18,201.16,0.67]
[1756588655219,26.0,201.18,201.14,4.66757479]
[1756588655422,26.0,201.18,201.17,0.67]
[1756588658514,26.0,201.18,201.16,0.67]
[1756588659111,35.69804596,201.19,201.16,0.67]
[1756588668627,35.69804596,201.19,201.14,4.69757479]
[1756588668825,35.69804596,201.19,201.15,0.67]